fUST/lending_fUST_20240116
["ID","MTS","AMOUNT","RATE_DAILY","PERIOD"]
[311710785,1705348242630,-503.24629556,0.0003041,2]
[311710787,1705348242639,-500.0,0.0003041,2]
[311710789,1705348242649,-500.0,0.0003041,2]
[311710791,1705348242658,-221.65303753,0.0003041,2]
[311710793,1705348242667,-500.0,0.0003041,2]
[311710795,1705348242676,-500.0,0.0003041,2]
[311710797,1705348242685,-500.0,0.0003041,2]
[311710799,1705348242694,-507.60003843,0.0003041,2]
[311710801,1705348242702,-500.0,0.0003041,2]
[311710803,1705348242711,-500.0,0.0003041,2]
[311710805,1705348242720,-500.0,0.0003041,2]
[311710807,1705348242729,-500.0,0.0003041,2]
[311710809,1705348242738,-502.76880136,0.0003041,2]
[311710811,1705348242747,-500.0,0.0003041,2]
[311710813,1705348242756,-500.0,0.0003041,2]
[311710815,1705348242765,-331.22561931,0.0003041,2]
[311710817,1705348242774,-501.16418846,0.0003041,2]
[311710819,1705348242782,-500.0,0.0003041,2]
[311710821,1705348242792,-2391.63,0.0003041,2]
[311710823,1705348242800,-5163.63,0.0003041,2]
[311710825,1705348242809,-500.0,0.0003041,2]
[311710828,1705348242820,-500.0,0.0003041,2]
[311710830,1705348242828,-5038.68,0.0003041,2]
[311710832,1705348242838,-503.51601162,0.0003041,2]
[311710835,1705348242847,-500.0,0.0003041,2]
[311710838,1705348242856,-500.0,0.0003041,2]
[311710841,1705348242865,-1172.47,0.0003041,2]
[311710844,1705348242874,-500.0,0.0003041,2]
[311710847,1705348242883,-502.46645335,0.0003041,2]
[311710850,1705348242892,-500.0,0.0003041,2]
[311710853,1705348242901,-552.08581797,0.0003041,2]
[311710856,1705348242910,-500.0,0.0003041,2]
[311710859,1705348242919,-2486.03,0.0003041,2]
[311710861,1705348242929,-500.0,0.0003041,2]
[311710863,1705348242938,-500.0,0.0003041,2]
[311710865,1705348242948,-500.0,0.0003041,2]
[311710867,1705348242957,-626.87,0.0003041,2]
[311710869,1705348242967,-500.0,0.0003041,2]
[311710871,1705348242977,-500.0,0.0003041,2]
[311710873,1705348242986,-500.0,0.0003041,2]
[311710875,1705348242996,-12031.8,0.0003041,2]
[311710877,1705348243006,-500.0,0.0003041,2]
[311710879,1705348243017,-500.0,0.0003041,2]
[311710881,1705348243027,-500.0,0.0003041,2]
[311710884,1705348243038,-3020.64,0.0003041,2]
[311710885,1705348243047,-500.0,0.0003041,2]
[311710887,1705348243058,-500.0,0.0003041,2]
[311710889,1705348243067,-1159.69,0.0003041,2]
[311710899,1705348243145,-4620.48,0.0003041,2]
[311710900,1705348243154,-500.0,0.0003041,2]
[311710901,1705348243164,-384.95782185,0.0003041,2]
[311710902,1705348243173,-500.0,0.0003041,2]
[311710903,1705348243183,-500.0,0.0003041,2]
[311710904,1705348243192,-596.01,0.0003041,2]
[311710905,1705348243201,-1676.34,0.0003041,2]
[311710906,1705348243211,-500.0,0.0003041,2]
[311710908,1705348243220,-500.0,0.0003041,2]
[311710910,1705348243230,-19417.06,0.0003041,2]
[311710912,1705348243239,-588.59,0.0003041,2]
[311710914,1705348243248,-500.0,0.0003041,2]
[311710916,1705348243258,-501.64420463,0.0003041,2]
[311710918,1705348243267,-1397.71,0.0003041,2]
[311710920,1705348243277,-242.89215293,0.0003041,2]
[311710923,1705348243288,-500.0,0.0003041,2]
[311710924,1705348243298,-500.0,0.0003041,2]
[311710926,1705348243307,-2246.28,0.0003041,2]
[311710928,1705348243317,-725.14,0.0003041,2]
[311710931,1705348243327,-500.0,0.0003041,2]
[311710932,1705348243336,-500.0,0.0003041,2]
[311710933,1705348243345,-500.0,0.0003041,2]
[311710934,1705348243354,-1214.33,0.0003041,2]
[311710935,1705348243363,-500.0,0.0003041,2]
[311710936,1705348243377,-500.0,0.0003041,2]
[311710937,1705348243386,-500.0,0.0003041,2]
[311710938,1705348243395,-500.0,0.0003041,2]
[311710939,1705348243404,-517.61704025,0.0003041,2]
[311710940,1705348243413,-674.82,0.0003041,2]
[311710941,1705348243422,-500.0,0.0003041,2]
[311710943,1705348243431,-500.0,0.0003041,2]
[311710945,1705348243441,-691.43,0.0003041,2]
[311710947,1705348243450,-500.0,0.0003041,2]
[311710949,1705348243459,-500.0,0.0003041,2]
[311710951,1705348243468,-500.0,0.0003041,2]
[311710953,1705348243478,-4118.94,0.0003041,2]
[311710955,1705348243487,-500.0,0.0003041,2]
[311710957,1705348243496,-624.39,0.0003041,2]
[311710959,1705348243506,-848.07,0.0003041,2]
[311710961,1705348243515,-512.24310383,0.0003041,2]
[311710963,1705348243525,-893.67,0.0003041,2]
[311710965,1705348243534,-3070.13,0.0003041,2]
[311710967,1705348243543,-500.0,0.0003041,2]
[311710969,1705348243552,-510.80992751,0.0003041,2]
[311710971,1705348243562,-997.51,0.0003041,2]
[311710973,1705348243570,-500.0,0.0003041,2]
[311710975,1705348243579,-500.0,0.0003041,2]
[311710977,1705348243588,-500.0,0.0003041,2]
[311710979,1705348243597,-500.0,0.0003041,2]
[311710981,1705348243606,-500.0,0.0003041,2]
[311710983,1705348243615,-1151.18,0.0003041,2]
[311710985,1705348243624,-500.0,0.0003041,2]
[311710987,1705348243633,-500.0,0.0003041,2]
[311710989,1705348243642,-500.0,0.0003041,2]
[311710991,1705348243652,-500.0,0.0003041,2]
[311710993,1705348243661,-500.0,0.0003041,2]
[311710995,1705348243671,-155.01395126,0.0003055,2]
[311710997,1705348243680,-500.0,0.0003058,2]
[311710999,1705348243689,-500.0,0.00030581,2]
[311711001,1705348243698,-500.0,0.00030581,2]
[311711003,1705348243708,-469.39580849,0.00030581,2]
[311711005,1705348243717,-166.39764695,0.00030581,4]
[311711007,1705348243726,-615.80248759,0.00030581,4]
[311711009,1705348243735,-594.2143433,0.00030581,4]
[311711011,1705348243744,-1694.17346883,0.00030581,4]
[311711013,1705348243753,-2030.29653603,0.00030581,4]
[311711015,1705348243762,-1220.24948289,0.00030581,4]
[311711017,1705348243772,-19669.45887816,0.00030581,4]
[311711019,1705348243781,-515.17636802,0.00030581,4]
[311711020,1705348243790,-155.01395126,0.00030581,4]
[311711022,1705348243799,-155.01395126,0.00030581,4]
[311711024,1705348243808,-1042.06966143,0.00030581,4]
[311711026,1705348243817,-155.01395126,0.00030581,2]
[311711028,1705348243826,-500.0,0.00030582,2]
[311711030,1705348243836,-500.0,0.00030582,2]
[311711032,1705348243845,-500.0,0.00030582,2]
[311711034,1705348243854,-875.01165605,0.00030582,4]
[311711036,1705348243863,-174.94849142,0.00030582,4]
[311711038,1705348243873,-20842.42787433,0.00030582,4]
[311711040,1705348243882,-3889.942959,0.000306,2]
[311711042,1705348243891,-150.5,0.0003066,30]
[311711044,1705348243900,-377.0,0.0003067,30]
[311711046,1705348243909,-150.5,0.0003067,30]
[311711048,1705348243919,-241.27,0.0003068,30]
[311711050,1705348243928,-377.0,0.0003068,30]
[311711052,1705348243937,-150.5,0.0003068,30]
[311711054,1705348243946,-849.56233299,0.00030681,4]
[311711056,1705348243955,-500.0,0.00030681,2]
[311711058,1705348243965,-3327.83574168,0.00030682,7]
[311711060,1705348243976,-216.49155598,0.00030682,2]
[311711062,1705348243985,-343.80031935,0.00030683,2]
[311711064,1705348243994,-13698.4853674,0.00030683,4]
[311711066,1705348244003,-263.23548355,0.00030683,2]
[311711068,1705348244013,-500.0,0.00030683,5]
[311711071,1705348244023,-500.0,0.00030684,2]
[311711073,1705348244032,-500.0,0.00030684,2]
[311711075,1705348244041,-500.0,0.00030684,2]
[311711077,1705348244051,-500.0,0.00030684,2]
[311711079,1705348244060,-500.0,0.00030684,2]
[311711080,1705348244069,-500.0,0.00030684,2]
[311711083,1705348244078,-500.0,0.00030684,2]
[311711084,1705348244087,-500.0,0.00030684,2]
[311711087,1705348244097,-577.45,0.00030684,2]
[311711089,1705348244106,-500.0,0.00030684,2]
[311711091,1705348244115,-626.12,0.00030684,2]
[311711092,1705348244124,-500.0,0.00030684,2]
[311711094,1705348244133,-635.0,0.00030684,2]
[311711096,1705348244142,-500.0,0.00030684,2]
[311711099,1705348244152,-500.0,0.00030684,2]
[311711100,1705348244161,-500.0,0.00030684,2]
[311711102,1705348244170,-500.0,0.00030684,2]
[311711104,1705348244179,-500.0,0.00030684,2]
[311711106,1705348244189,-500.0,0.00030684,2]
[311711109,1705348244199,-500.0,0.00030684,2]
[311711111,1705348244208,-500.0,0.00030684,2]
[311711113,1705348244217,-500.0,0.00030684,2]
[311711115,1705348244228,-621.87,0.00030684,2]
[311711117,1705348244237,-503.84730976,0.00030684,2]
[311711119,1705348244249,-500.0,0.00030684,2]
[311711121,1705348244258,-500.0,0.00030684,2]
[311711122,1705348244267,-500.0,0.00030684,2]
[311711124,1705348244276,-500.0,0.00030684,2]
[311711127,1705348244285,-500.0,0.00030684,2]
[311711128,1705348244296,-500.0,0.00030684,2]
[311711131,1705348244306,-865.06,0.00030684,2]
[311711132,1705348244315,-547.64413327,0.00030684,2]
[311711134,1705348244324,-508.79321052,0.00030684,2]
[311711136,1705348244333,-500.0,0.00030684,2]
[311711138,1705348244342,-500.0,0.00030684,2]
[311711140,1705348244351,-611.73,0.00030684,2]
[311711142,1705348244360,-150.0,0.00030684,2]
[311711144,1705348244371,-502.99875543,0.00030684,2]
[311711146,1705348244381,-500.0,0.00030684,2]
[311711148,1705348244390,-608.05,0.00030684,2]
[311711150,1705348244399,-500.0,0.00030684,2]
[311711152,1705348244408,-500.0,0.00030684,2]
[311711154,1705348244417,-1059.7,0.00030684,2]
[311711156,1705348244427,-500.0,0.00030684,2]
[311711158,1705348244436,-500.0,0.00030684,2]
[311711160,1705348244446,-500.0,0.00030684,2]
[311711162,1705348244456,-659.92,0.00030684,2]
[311711164,1705348244466,-822.33,0.00030684,2]
[311711167,1705348244476,-500.0,0.00030684,2]
[311711169,1705348244485,-500.0,0.00030684,2]
[311711171,1705348244494,-500.0,0.00030684,2]
[311711172,1705348244503,-501.18221838,0.00030684,2]
[311711175,1705348244512,-500.0,0.00030684,2]
[311711177,1705348244521,-794.74,0.00030684,2]
[311711178,1705348244531,-618.92361801,0.00030684,2]
[311711181,1705348244540,-500.0,0.00030684,2]
[311711183,1705348244549,-500.0,0.00030684,2]
[311711184,1705348244559,-500.0,0.00030684,2]
[311711186,1705348244569,-500.0,0.00030684,2]
[311711188,1705348244583,-500.0,0.00030684,2]
[311711190,1705348244593,-500.0,0.00030684,2]
[311711192,1705348244602,-500.0,0.00030684,2]
[311711194,1705348244612,-500.0,0.00030684,2]
[311711196,1705348244621,-500.0,0.00030684,2]
[311711198,1705348244630,-2391.63,0.00030684,2]
[311711201,1705348244645,-5163.63,0.00030684,2]
[311711202,1705348244655,-500.0,0.00030684,2]
[311711204,1705348244664,-510.24468115,0.00030684,2]
[311711207,1705348244674,-5038.68,0.00030684,2]
[311711215,1705348244745,-500.0,0.00030684,2]
[311711217,1705348244755,-500.0,0.00030684,2]
[311711219,1705348244765,-1172.47,0.00030684,2]
[311711221,1705348244774,-500.0,0.00030684,2]
[311711223,1705348244785,-500.0,0.00030684,2]
[311711225,1705348244794,-500.0,0.00030684,2]
[311711227,1705348244803,-2486.03,0.00030684,2]
[311711229,1705348244812,-500.0,0.00030684,2]
[311711231,1705348244821,-503.34624185,0.00030684,2]
[311711233,1705348244830,-500.0,0.00030684,2]
[311711235,1705348244840,-626.87,0.00030684,2]
[311711237,1705348244848,-500.0,0.00030684,2]
[311711239,1705348244857,-500.0,0.00030684,2]
[311711241,1705348244866,-500.0,0.00030684,2]
[311711243,1705348244875,-12031.8,0.00030684,2]
[311711245,1705348244884,-500.0,0.00030684,2]
[311711247,1705348244893,-500.0,0.00030684,2]
[311711249,1705348244903,-3020.64,0.00030684,2]
[311711251,1705348244912,-1159.69,0.00030684,2]
[311711253,1705348244921,-2552.2839324,0.00030684,2]
[311711286,1705348245229,-151.0,0.00030135,2]
[311711288,1705348245239,-151.0,0.00030135,2]
[311711290,1705348245248,-151.0,0.00030135,2]
[311711292,1705348245258,-151.0,0.00030135,2]
[311711294,1705348245267,-1918.92,0.0003041,2]
[311711296,1705348245276,-151.0,0.00030683,2]
[311711299,1705348245286,-2068.1960676,0.00030684,2]
[311711302,1705348245295,-500.0,0.00030684,2]
[311711304,1705348245304,-500.0,0.00030684,2]
[311711307,1705348245315,-502.63221027,0.00030684,2]
[311711310,1705348245324,-596.01,0.00030684,2]
[311711312,1705348245333,-1676.34,0.00030684,2]
[311711315,1705348245343,-500.0,0.00030684,2]
[311711319,1705348245354,-2452.0621857,0.00030684,2]
[311711323,1705348245373,-500.0,0.00030136,2]
[311711326,1705348245382,-330.1902464,0.00030684,2]
[311711340,1705348245449,-3121.65,0.00030126,3]
[311711343,1705348245459,-151.0,0.00030135,2]
[311711346,1705348245468,-151.0,0.00030135,2]
[311711349,1705348245478,-151.0,0.00030135,2]
[311711352,1705348245487,-444.62789711,0.0003041,2]
[311711362,1705348246352,-1.88047856,0.00030036,2]
[311711363,1705348246365,-4561.83306101,0.00030036,2]
[311711828,1705348376380,-154.9690062,0.00026397,4]
[311711829,1705348376408,-3383.0309938,0.00026398,2]
[311711841,1705348585284,-154.9690062,0.00026253,4]
[311711842,1705348585304,-500.0,0.00026254,2]
[311711843,1705348585325,-13703.21181576,0.00026254,2]
[311711844,1705348585346,-167.647572,0.00026257,2]
[311711845,1705348585367,-1325.55598965,0.00026398,2]
[311711846,1705348585388,-2625.43774623,0.00026398,2]
[311711847,1705348585409,-154.9690062,0.00026398,2]
[311711848,1705348585430,-182.50978617,0.00026398,2]
[311711849,1705348585450,-214.95644143,0.00026398,2]
[311711850,1705348585470,-157.11446676,0.00026398,2]
[311711851,1705348585491,-497.135073,0.00026531,2]
[311711852,1705348585511,-2763.4930966,0.00027,2]
[311711884,1705349041497,-679.24429502,0.00025261,2]
[311711885,1705349041520,-154.9690062,0.00025262,4]
[311711886,1705349041540,-246.78669878,0.00025263,2]
[311711906,1705349236384,-7043.73347054,0.00024505,2]
[311711907,1705349236416,-143.74966266,0.00024505,2]
[311711909,1705349246987,-1467.04826523,0.00025262,2]
[311711910,1705349247008,-1560.0644451,0.00025263,2]
[311711911,1705349247029,-860.88728967,0.00025263,2]
[311711912,1705349250725,-1184.78918095,0.00024505,2]
[311711913,1705349250846,-24.17937104,0.00024505,2]
[311711916,1705349272337,-330.95167084,0.00022601,2]
[311711917,1705349272538,-482.82129691,0.00022601,2]
[311711918,1705349272662,-482.82129691,0.00022601,2]
[311711919,1705349272799,-170.45400057,0.00022601,2]
[311711920,1705349272826,-155.02170304,0.00024505,2]
[311711921,1705349272854,-157.3455933,0.00024505,2]
[311711922,1705349272909,-25.33849023,0.00024505,2]
[311711923,1705349272935,-154.9690062,0.00024505,2]
[311711925,1705349288210,-155.6374847,0.00024505,2]
[311711926,1705349288239,-238.35461185,0.00024505,2]
[311711927,1705349288485,-8.04065503,0.00024505,2]
[311711928,1705349292787,-523.79633651,0.00024505,2]
[311711929,1705349292834,-10.68972115,0.00024505,2]
[311711930,1705349292933,513.10661536,0.00022601,2]
[311711931,1705349292961,523.79633651,0.00022601,2]
[311711932,1705349292985,430.14531336,0.00022601,2]
[311711935,1705349308922,1467.04826523,0.00022601,2]
[311711936,1705349310344,550.92649178,0.00022601,2]
[311711938,1705349315284,-154.9690062,0.0002526,4]
[311711939,1705349315305,-154.9690062,0.00025261,2]
[311711940,1705349315331,-1233.0619876,0.00025263,2]
[311711944,1705349324928,1467.04826523,0.00022601,2]
[311711945,1705349339307,305.70378365,0.00022601,2]
[311711947,1705349344957,279.12788075,0.00022601,2]
[311711948,1705349348394,-759.40198213,0.00022601,2]
[311711949,1705349348600,-428.51840235,0.00022601,2]
[311711950,1705349348630,-154.9690062,0.00022601,2]
[311711951,1705349348660,-175.91457358,0.00022601,2]
[311711952,1705349348702,-444.01640198,0.00022601,2]
[311711953,1705349364433,-433.69244539,0.00022601,2]
[311711955,1705349364590,-8.85086623,0.00022601,2]
[311711956,1705349364939,241.28131674,0.00022601,2]
[311711957,1705349365335,183.56026242,0.00022601,2]
[311711958,1705349365362,6.70667777,0.00022601,2]
[311712065,1705349433474,-166.666666,0.00024756,2]
[311712066,1705349433490,-4328.41194437,0.00025123,2]
[311712067,1705349433504,-20571.58805563,0.00025123,2]
[311712068,1705349433516,-180.27983491,0.00025263,2]
[311712069,1705349433527,-1.78083722,0.00025263,2]
[311712070,1705349433538,-1226.3490142,0.00025263,2]
[311712072,1705349433550,-2271.9244829,0.00025263,2]
[311712073,1705349433561,-154.9690062,0.00025599,4]
[311712074,1705349433572,-166.666666,0.000256,2]
[311712076,1705349433583,-185.17674386,0.00025768,2]
[311712079,1705349433594,-169.9529526,0.0002587,2]
[311712080,1705349433605,-344.73296744,0.00026398,2]
[311712081,1705349433616,-166.666666,0.00026444,2]
[311712082,1705349433629,-10000.0,0.00026624,2]
[311712083,1705349433640,-553.35500312,0.00027,2]
[311712084,1705349433653,-166.666666,0.00027287,2]
[311712085,1705349433665,-261.19258853,0.000274,2]
[311712086,1705349433677,-200.0,0.00027789,15]
[311712087,1705349433688,-975.44295995,0.0002786,2]
[311712089,1705349433700,-166.666666,0.00028131,2]
[311712091,1705349433710,-637.35460632,0.00028584,2]
[311712092,1705349433719,-2052.416144,0.000286,2]
[311712093,1705349433729,-155.06512735,0.00029,2]
[311712094,1705349433738,-2454.18896115,0.00029599,2]
[311712099,1705349433864,-1500.0,0.000296,2]
[311712100,1705349433877,-1700.06,0.0002978,3]
[311712101,1705349433886,-3241.91,0.0002978,3]
[311712102,1705349433895,-2701.59,0.0002978,3]
[311712103,1705349433905,-21521.60611582,0.0002979,7]
[311712131,1705349438046,-6883.06055218,0.0002979,7]
[311712133,1705349438054,-155.01395126,0.00029968,2]
[311712135,1705349438064,-2251.32,0.0002999,3]
[311712137,1705349438073,-849.56233299,0.00029998,2]
[311712139,1705349438082,-216.49155598,0.00029998,2]
[311712141,1705349438092,-174.94849142,0.00029998,2]
[311712144,1705349438101,-515.17636802,0.00029998,2]
[311712145,1705349438110,-155.01395126,0.00029998,2]
[311712147,1705349438119,-166.39764695,0.00029998,2]
[311712149,1705349438128,-1220.24948289,0.00029998,2]
[311712151,1705349438137,-875.01165605,0.00029998,2]
[311712154,1705349438146,-594.2143433,0.00029998,2]
[311712156,1705349438156,-155.01395126,0.00029998,2]
[311712157,1705349438165,-2030.29653603,0.00029998,2]
[311712159,1705349438175,-19669.45887816,0.00029998,2]
[311712162,1705349438184,-1694.17346883,0.00029998,2]
[311712163,1705349438197,-319.84377001,0.00029998,2]
[311712165,1705349438206,-480.82706187,0.00029998,2]
[311712167,1705349438215,-615.80248759,0.00029998,2]
[311712169,1705349438225,-343.80031935,0.00029999,2]
[311712171,1705349438235,-20842.42787433,0.00029999,2]
[311712173,1705349438244,-900.59678191,0.0003,2]
[311712175,1705349438253,-166.59677014,0.0003,2]
[311712178,1705349438262,-29665.65090844,0.0003,2]
[311712179,1705349438271,-316.23203037,0.0003,4]
[311712181,1705349438281,-273.0,0.0003,2]
[311712183,1705349438290,-3757.35908,0.0003,2]
[311712185,1705349438299,-297.8809135,0.0003,4]
[311712187,1705349438308,-1413.42859915,0.00030026,2]
[311712189,1705349438316,-154.98450155,0.00030034,4]
[311712191,1705349438326,-470.04658801,0.00030035,2]
[311712193,1705349438335,-169.8,0.00030035,2]
[311712195,1705349438345,-169.8,0.00030035,2]
[311712197,1705349438354,-5537.04008915,0.00030035,4]
[311712199,1705349438363,-137934.30480129,0.00030036,2]
[311712201,1705349438373,-154.9690062,0.00030036,2]
[311712203,1705349438382,-343.20044242,0.00030036,4]
[311712205,1705349438391,-410.1520012,0.00030036,2]
[311712207,1705349438400,-686.8051383,0.00030134,4]
[311712209,1705349438409,-677.59372393,0.00030134,4]
[311712210,1705349438417,-155.0,0.00030134,4]
[311712211,1705349438426,-1014.11617907,0.00030134,4]
[311712212,1705349438435,-2873.77131778,0.00030134,4]
[311712213,1705349438444,-195.04845331,0.00030134,4]
[311712214,1705349438453,-362.82536641,0.00030135,4]
[311712215,1705349438462,-555.71650941,0.00030136,2]
[311712216,1705349438486,-500.0,0.00030136,2]
[311712218,1705349438505,-500.0,0.00030136,2]
[311712220,1705349438514,-500.0,0.00030136,2]
[311712222,1705349438524,-377.74911454,0.00030136,2]
[311712224,1705349438533,-635.11268638,0.00030136,2]
[311712226,1705349438542,-217.08778916,0.00030136,2]
[311712229,1705349438551,-500.0,0.00030136,2]
[311712231,1705349438561,-500.0,0.00030136,2]
[311712233,1705349438570,-500.39631594,0.00030136,2]
[311712234,1705349438579,-500.0,0.00030136,2]
[311712237,1705349438589,-500.76884476,0.00030136,2]
[311712239,1705349438600,-500.0,0.00030136,2]
[311712241,1705349438612,-500.0,0.00030136,2]
[311712243,1705349438621,-500.69084539,0.00030136,2]
[311712245,1705349438631,-500.0,0.00030136,2]
[311712247,1705349438640,-505.17466226,0.00030136,2]
[311712249,1705349438649,-500.0,0.00030136,2]
[311712251,1705349438658,-500.0,0.00030136,2]
[311712252,1705349438667,-500.0,0.00030136,2]
[311712254,1705349438676,-500.0,0.00030136,2]
[311712256,1705349438685,-500.0,0.00030136,2]
[311712258,1705349438694,-500.0,0.00030136,2]
[311712260,1705349438703,-150.0,0.00030136,2]
[311712262,1705349438712,-500.0,0.00030136,2]
[311712264,1705349438722,-500.0,0.00030136,2]
[311712266,1705349438731,-232.81777432,0.00030136,2]
[311712269,1705349438740,-254.4993865,0.00030136,2]
[311712271,1705349438749,-500.0,0.00030136,2]
[311712272,1705349438758,-500.0,0.00030136,2]
[311712275,1705349438767,-313.9541795,0.00030136,2]
[311712276,1705349438776,-500.0,0.00030136,2]
[311712278,1705349438786,-496.52210292,0.00030136,2]
[311712280,1705349438795,-500.0,0.00030136,2]
[311712282,1705349438804,-500.0,0.00030136,2]
[311712285,1705349438814,-500.0,0.00030136,2]
[311712286,1705349438823,-500.0,0.00030136,2]
[311712288,1705349438832,-500.0,0.00030136,2]
[311712290,1705349438841,-500.80020563,0.00030136,2]
[311712293,1705349438851,-583.22,0.00030136,2]
[311712295,1705349438860,-500.0,0.00030136,2]
[311712297,1705349438869,-500.0,0.00030136,2]
[311712299,1705349438878,-500.0,0.00030136,2]
[311712301,1705349438888,-500.0,0.00030136,2]
[311712303,1705349438896,-500.0,0.00030136,2]
[311712305,1705349438906,-500.0,0.00030136,2]
[311712307,1705349438914,-501.18221838,0.00030136,2]
[311712309,1705349438923,-500.0,0.00030136,2]
[311712311,1705349438932,-388.5668798,0.00030136,2]
[311712313,1705349438941,-500.0,0.00030136,2]
[311712315,1705349438950,-222.29192592,0.00030136,2]
[311712317,1705349438959,-500.0,0.00030136,2]
[311712319,1705349438968,-500.0,0.00030136,2]
[311712321,1705349438978,-500.0,0.00030136,2]
[311712332,1705349439072,-618.92361801,0.00030136,2]
[311712334,1705349439083,-500.0,0.00030136,2]
[311712336,1705349439092,-500.0,0.00030136,2]
[311712338,1705349439101,-500.0,0.00030136,2]
[311712340,1705349439110,-500.0,0.00030136,2]
[311712342,1705349439119,-500.0,0.00030136,2]
[311712344,1705349439128,-500.0,0.00030136,2]
[311712346,1705349439137,-1779.85,0.00030136,2]
[311712348,1705349439147,-500.0,0.00030136,2]
[311712350,1705349439155,-500.0,0.00030136,2]
[311712352,1705349439165,-500.0,0.00030136,2]
[311712354,1705349439174,-501.6604041,0.00030136,2]
[311712356,1705349439186,-500.0,0.00030136,2]
[311712358,1705349439197,-552.08581797,0.00030136,2]
[311712360,1705349439208,-537.38332628,0.00030136,2]
[311712362,1705349439217,-829.68,0.00030136,2]
[311712364,1705349439226,-500.0,0.00030136,2]
[311712367,1705349439235,-500.0,0.00030136,2]
[311712369,1705349439244,-500.0,0.00030136,2]
[311712370,1705349439253,-500.0,0.00030136,2]
[311712372,1705349439262,-500.0,0.00030136,2]
[311712375,1705349439272,-586.24,0.00030136,2]
[311712376,1705349439282,-384.95782185,0.00030136,2]
[311712378,1705349439291,-500.0,0.00030136,2]
[311712381,1705349439301,-1063.05,0.00030136,2]
[311712382,1705349439310,-501.08375039,0.00030136,2]
[311712384,1705349439320,-1060.72,0.00030136,2]
[311712386,1705349439329,-500.0,0.00030136,2]
[311712388,1705349439338,-564.07,0.00030136,2]
[311712391,1705349439347,-500.0,0.00030136,2]
[311712392,1705349439356,-500.0,0.00030136,2]
[311712394,1705349439365,-500.0,0.00030136,2]
[311712397,1705349439375,-500.0,0.00030136,2]
[311712399,1705349439384,-500.0,0.00030136,2]
[311712401,1705349439393,-501.64420463,0.00030136,2]
[311712402,1705349439402,-694.92,0.00030136,2]
[311712405,1705349439411,-500.0,0.00030136,2]
[311712407,1705349439420,-500.0,0.00030136,2]
[311712408,1705349439430,-500.0,0.00030136,2]
[311712411,1705349439440,-500.0,0.00030136,2]
[311712413,1705349439448,-500.0,0.00030136,2]
[311712415,1705349439458,-10000.0,0.00030136,10]
[311712417,1705349439467,-500.0,0.00030136,2]
[311712418,1705349439475,-500.0,0.00030136,2]
[311712420,1705349439484,-500.0,0.00030136,2]
[311712422,1705349439493,-500.0,0.00030136,2]
[311712424,1705349439503,-500.0,0.00030136,2]
[311712426,1705349439512,-500.0,0.00030136,2]
[311712428,1705349439521,-523.30543752,0.00030136,2]
[311712430,1705349439530,-500.0,0.00030136,2]
[311712432,1705349439539,-500.0,0.00030136,2]
[311712434,1705349439548,-662.62,0.00030136,2]
[311712436,1705349439558,-500.0,0.00030136,2]
[311712438,1705349439567,-500.0,0.00030136,2]
[311712440,1705349439577,-500.0,0.00030136,2]
[311712442,1705349439586,-500.0,0.00030136,2]
[311712444,1705349439595,-517.22036158,0.00030136,2]
[311712446,1705349439604,-500.0,0.00030136,2]
[311712448,1705349439613,-1000.0,0.00030136,5]
[311712450,1705349439622,-500.0,0.00030136,2]